bitfinex-derivatives/quotes_ETHF0:USTF0_20250926
["timestamp","ask_amount","ask_price","bid_price","bid_amount"]
[1758849041193,0.3406,3925.4,3925.0,0.73328]
[1758849041606,0.1395,3925.5,3925.0,0.73328]
[1758849041798,0.1395,3925.5,3925.1,0.45827]
[1758849042200,0.3406,3925.4,3925.0,0.275]
[1758849042401,0.1395,3925.5,3925.0,0.275]
[1758849042598,0.3406,3925.4,3925.0,0.275]
[1758849042799,0.59774,3925.5,3925.0,0.275]
[1758849042998,0.3406,3925.4,3925.0,0.275]
[1758849043802,0.3406,3925.4,3925.1,0.73608]
[1758849043997,0.3406,3925.4,3925.0,0.275]
[1758849043998,0.1395,3925.5,3925.2,0.45826]
[1758849044206,0.3406,3925.4,3925.0,0.73329]
[1758849044608,0.1395,3925.5,3925.0,0.73329]
[1758849044811,0.3406,3925.4,3925.0,0.73329]
[1758849045106,0.1395,3925.5,3925.0,0.73329]
[1758849045303,0.3406,3925.4,3925.0,0.73329]
[1758849046013,0.45825,3925.3,3925.0,0.275]
[1758849046308,0.1395,3925.5,3925.0,0.275]
[1758849046309,0.3406,3925.4,3925.0,0.275]
[1758849046509,0.1395,3925.5,3925.0,0.73328]
[1758849046703,0.3406,3925.3,3925.0,0.275]
[1758849046902,0.1395,3925.5,3925.1,0.45827]
[1758849047207,0.3406,3925.7,3925.5,0.45823]
[1758849047403,0.3406,3925.7,3925.5,0.73603]
[1758849047803,0.366,3925.8,3925.7,0.45821]
[1758849048010,0.366,3925.8,3925.7,0.73601]
[1758849048210,0.3406,3925.8,3925.7,0.73601]
[1758849049017,4.80138315,3926.9,3925.7,0.73601]
[1758849049018,0.1395,3927.5,3926.5,0.45811]
[1758849049206,0.3406,3926.9,3926.5,0.45811]
[1758849049402,0.3406,3926.9,3926.5,0.2778]
[1758849049603,0.1395,3927.5,3926.6,0.73589]
[1758849049604,0.45803,3927.3,3926.6,0.73589]
[1758849049914,0.3406,3926.9,3926.6,0.73589]
[1758849050107,0.3406,3926.9,3926.7,0.45808]
[1758849050608,0.45802,3927.3,3926.7,0.45808]
[1758849051005,0.1395,3927.5,3926.9,0.73586]
[1758849051209,0.90769299,3927.4,3927.1,0.73584]
[1758849051408,0.1395,3927.5,3927.1,0.73584]
[1758849051708,0.1395,3927.5,3927.1,0.45804]
[1758849051905,0.1395,3927.5,3926.1,0.45816]
[1758849052110,0.3406,3926.3,3925.9,0.45818]
[1758849052406,0.3406,3926.3,3925.4,39.742]
[1758849052407,0.3406,3926.8,3926.2,45.87918315]
[1758849052609,0.3406,3927.0,3926.8,0.73587]
[1758849052906,0.3406,3927.0,3926.6,4.80138315]
[1758849052907,0.3406,3927.4,3926.7,0.274]
[1758849053113,0.1395,3927.0,3926.3,0.45813]
[1758849053411,0.1395,3926.5,3926.0,0.45816]
[1758849053606,0.1395,3926.5,3926.1,41.53215]
[1758849053808,0.3406,3926.4,3926.1,41.53215]
[1758849054009,0.3406,3926.4,3926.1,41.80995]
[1758849054217,0.1395,3926.5,3926.1,1.00995]
[1758849054416,0.3406,3926.4,3926.1,1.00995]
[1758849054620,0.1395,3926.5,3926.1,1.00995]
[1758849054816,0.3406,3926.9,3926.3,5.07918315]
[1758849055120,0.1395,3927.0,3926.4,0.45811]
[1758849055416,0.1395,3927.5,3927.1,0.2778]
[1758849055618,0.1395,3927.5,3927.0,0.274]
[1758849055619,0.3406,3927.3,3927.0,0.274]
[1758849055810,0.45804,3927.2,3927.0,0.274]
[1758849056010,0.3406,3927.1,3927.0,0.274]
[1758849057112,0.3406,3927.1,3925.9,0.73218]
[1758849057113,0.3406,3926.9,3925.9,0.73218]
[1758849057431,0.3406,3926.7,3926.2,5.25952315]
[1758849057620,0.1395,3926.5,3926.3,0.274]
[1758849057919,0.3406,3926.4,3926.3,0.274]
[1758849060618,0.1345,3926.0,3925.5,40.8]
[1758849060817,0.1345,3926.0,3925.6,0.2703]
[1758849061013,0.1345,3926.0,3925.5,40.8]
[1758849061014,0.45827,3925.2,3924.0,0.1152]
[1758849061317,0.4778,3925.0,3924.1,5.07538315]
[1758849061512,0.3433,3925.0,3924.8,0.7286]
[1758849061715,0.3433,3925.0,3924.8,0.2703]
[1758849061914,0.3433,3925.2,3924.6,0.73233]
[1758849062119,0.1345,3925.5,3924.8,0.4583]
[1758849062120,0.3433,3925.4,3924.8,0.4583]
[1758849062414,0.80155,3925.4,3924.8,0.4583]
[1758849062623,0.45826,3925.3,3924.6,0.73233]
[1758849062823,0.3433,3925.2,3924.6,0.73233]
[1758849063125,0.3433,3924.9,3924.6,0.73233]
[1758849063518,0.1345,3925.0,3924.6,0.73233]
[1758849063920,0.3556,3924.9,3924.6,0.73233]
[1758849064123,0.3556,3924.9,3924.7,0.45831]
[1758849064517,0.1345,3925.0,3924.7,0.45831]
[1758849064721,0.3556,3924.9,3924.7,0.45831]
[1758849065118,0.3556,3925.3,3924.7,0.2694]
[1758849065323,1.28481,3926.5,3925.4,0.2694]
[1758849065324,0.4901,3926.0,3925.4,0.2694]
[1758849065523,0.1345,3926.0,3925.5,0.274]
[1758849065722,0.3556,3925.9,3925.6,0.2694]
[1758849065931,0.3556,3925.9,3925.7,0.2694]
[1758849066230,0.3556,3925.9,3925.8,0.2694]
[1758849066424,0.3556,3926.1,3925.9,0.72758]
[1758849066629,0.0254,3926.2,3926.0,0.72756]
[1758849067129,0.381,3926.2,3926.0,0.72756]
[1758849067625,0.0254,3926.2,3926.1,0.2694]
[1758849068623,0.45799,3927.6,3926.9,0.45807]
[1758849068826,0.56814207,3927.4,3927.0,0.274]
[1758849069130,0.3556,3927.2,3927.0,0.274]
[1758849069332,0.92374207,3927.1,3927.0,0.274]
[1758849069518,0.56814207,3927.1,3927.0,0.5434]
[1758849069722,0.022,3927.9,3927.6,0.2694]
[1758849069918,0.56829104,3927.8,3927.5,0.274]
[1758849070119,0.3556,3927.6,3927.5,0.274]
[1758849070327,0.92389104,3927.6,3927.5,0.274]
[1758849070526,0.92389104,3927.6,3927.5,0.5434]
[1758849070527,0.56829104,3927.6,3927.5,0.5434]
[1758849070729,0.022,3927.9,3927.8,0.45796]
[1758849070928,0.94212468,3927.9,3927.8,0.45796]
[1758849071830,0.94212468,3927.9,3927.5,0.274]
[1758849071831,0.3556,3927.8,3927.5,0.274]
[1758849072027,0.56452468,3927.7,3927.5,0.274]
[1758849072230,0.92012468,3927.6,3927.5,0.274]
[1758849075229,0.92012468,3927.6,3927.5,0.732]
[1758849075629,0.92012468,3927.6,3927.5,5.53338315]
[1758849075835,0.3556,3927.6,3927.5,5.53338315]
[1758849076038,0.91964019,3927.6,3927.5,0.274]
[1758849076541,0.3556,3927.4,3926.7,0.2694]
[1758849076730,0.3556,3927.4,3926.3,4.80138315]
[1758849076731,0.45808,3926.8,3926.3,0.45814]
[1758849076938,0.3556,3926.4,3926.3,5.25952315]
[1758849077135,0.3556,3927.1,3926.5,0.45811]
[1758849077337,0.70794882,3927.0,3926.7,4.80138315]
[1758849077633,0.56314882,3926.9,3926.5,0.73211]
[1758849077833,0.3556,3926.8,3926.5,0.73211]
[1758849078043,0.56314882,3926.7,3926.5,0.73211]
[1758849078332,0.91892106,3926.6,3926.5,0.274]
[1758849079432,0.91891846,3926.6,3926.5,0.274]
[1758849080731,0.56331846,3926.6,3926.5,0.274]
[1758849080933,0.1448,3927.0,3926.7,0.45808]
[1758849081132,0.3556,3926.8,3926.7,0.45808]
[1758849081333,0.9189115,3926.8,3926.7,0.45808]
[1758849081737,0.9189115,3926.8,3926.5,0.274]
[1758849081738,0.3556,3926.7,3926.5,0.274]
[1758849081938,0.9189115,3926.6,3926.5,0.274]
[1758849082444,0.3556,3926.6,3926.5,0.274]
[1758849082639,0.3556,3925.9,3924.8,0.2694]
[1758849082841,0.1448,3925.5,3925.2,0.45826]
[1758849083142,0.1448,3925.0,3924.9,0.274]
[1758849083343,0.5004,3925.0,3924.9,0.274]
[1758849088141,0.1448,3924.5,3923.9,39.723]
[1758849088343,0.5004,3924.0,3923.9,40.18141]
[1758849088645,0.5004,3924.0,3923.9,0.274]
[1758849089443,0.5004,3924.0,3922.9,0.45853]
[1758849089444,0.3556,3923.4,3922.9,0.45853]
[1758849089739,0.3556,3923.4,3922.9,0.73252]
[1758849089947,0.3556,3923.4,3923.0,0.45851]
[1758849090136,0.3432,3923.4,3923.0,0.45851]
[1758849090645,0.1448,3923.5,3923.0,0.45851]
[1758849090945,0.1448,3923.5,3922.9,0.274]
[1758849090946,0.3432,3923.4,3923.3,0.45848]
[1758849091155,0.3432,3923.9,3923.5,0.2587]
[1758849091448,0.3432,3923.9,3923.7,0.45843]
[1758849091646,0.3432,3923.9,3923.7,0.73243]
[1758849091847,0.1448,3924.0,3923.7,0.73243]
[1758849092035,0.1448,3924.0,3923.8,5.51850315]
[1758849092241,0.1448,3924.5,3924.0,0.4584]
[1758849092445,0.3432,3924.4,3924.2,0.45837]
[1758849092639,0.1448,3924.5,3924.2,0.45837]
[1758849092841,0.80159,3924.2,3923.7,0.274]
[1758849093038,0.3432,3923.9,3923.7,0.274]
[1758849093444,0.3432,3923.4,3923.3,0.73249]
[1758849093948,0.1382,3923.5,3922.9,0.45853]
[1758849094145,0.1382,3923.5,3922.9,0.73253]
[1758849094146,0.4814,3923.0,3922.9,0.73253]
[1758849095843,0.4814,3923.0,3922.9,0.274]
[1758849096049,0.4814,3923.0,3922.5,0.45857]
[1758849096050,0.3432,3922.7,3922.5,0.45857]
[1758849096250,0.1382,3923.0,3922.6,0.273]
[1758849096449,0.3432,3922.3,3921.6,0.45868]
[1758849096641,0.3432,3921.9,3921.7,0.274]
[1758849096842,0.3432,3921.9,3921.7,0.73267]
[1758849097242,0.1382,3922.0,3921.7,0.73267]
[1758849097544,0.3432,3921.9,3921.7,0.73267]
[1758849097743,0.1382,3922.0,3921.7,0.73267]
[1758849097950,0.3432,3921.9,3921.8,0.45865]
[1758849098445,0.3432,3921.9,3921.8,0.45866]
[1758849101450,0.3432,3921.9,3921.7,0.274]
[1758849101855,0.3432,3921.9,3921.8,0.45865]
[1758849102347,0.3432,3921.9,3921.7,0.274]
[1758849102752,0.3432,3921.9,3921.7,0.73267]
[1758849102950,0.3432,3921.9,3921.8,0.45865]
[1758849105242,0.1382,3922.5,3922.1,0.45862]
[1758849105447,0.1382,3922.5,3922.2,0.45861]
[1758849105645,0.3432,3922.4,3921.7,0.274]
[1758849105952,0.3432,3921.9,3921.7,0.274]
[1758849106145,0.1382,3922.0,3921.7,0.274]
[1758849106350,0.3432,3921.9,3921.7,0.274]
[1758849106858,0.1382,3922.0,3921.7,0.274]
[1758849107152,0.3432,3921.9,3921.8,0.45866]
[1758849107353,0.3432,3921.9,3921.6,0.45868]
[1758849107547,0.1382,3922.0,3921.6,0.45868]
[1758849107747,0.3432,3921.9,3921.6,0.45868]
[1758849107952,0.1382,3922.0,3921.6,0.45868]
[1758849108257,0.3432,3921.9,3921.6,0.45868]
[1758849108654,0.3432,3921.9,3921.7,0.45867]
[1758849109153,0.1382,3922.5,3922.2,0.45861]
[1758849109345,0.3432,3922.9,3922.8,0.45854]
[1758849110053,0.0254,3923.7,3922.8,5.0]
[1758849110351,0.3432,3923.6,3923.4,0.45847]
[1758849110555,0.0254,3923.7,3923.6,0.45845]
[1758849110850,0.0254,3923.7,3922.5,5.38949941]
[1758849110851,0.3432,3923.6,3923.2,0.273]
[1758849111051,0.1382,3923.5,3923.2,0.273]
[1758849111352,0.0254,3923.7,3923.2,0.273]
[1758849111551,0.80169,3923.4,3923.2,0.273]
[1758849111752,0.56213642,3923.3,3922.5,0.273]
[1758849111947,0.90533642,3923.2,3922.5,0.273]
[1758849112147,0.3432,3923.2,3922.5,0.273]
[1758849112353,0.3432,3922.9,3922.5,0.73157]
[1758849112945,0.1382,3923.0,3922.5,0.73157]
[1758849113149,0.56285619,3922.9,3922.8,0.45854]
[1758849113448,0.1382,3923.5,3923.0,0.45852]
[1758849113652,0.1382,3923.5,3923.1,0.273]
[1758849113653,0.5630909,3923.4,3923.1,0.273]
[1758849113853,0.3432,3923.2,3923.1,0.273]
[1758849114055,0.9062909,3923.2,3923.1,0.273]
[1758849114252,0.3432,3922.9,3922.6,0.45857]
[1758849114447,0.1382,3923.5,3923.2,0.45849]
[1758849114758,0.3432,3923.3,3922.8,0.45854]
[1758849114959,0.56342417,3923.2,3922.6,0.2587]
[1758849115254,0.56342417,3923.1,3922.5,0.273]
[1758849115457,0.70162417,3923.0,3922.6,0.45856]
[1758849115760,0.3432,3922.8,3922.6,0.45856]
[1758849115953,0.90662417,3922.7,3922.6,0.45856]
[1758849116353,0.56342417,3922.7,3922.6,0.73156]
[1758849116560,0.3432,3922.7,3922.6,0.73156]
[1758849116860,0.90662417,3922.7,3922.6,0.273]
[1758849117563,0.90662417,3922.7,3922.5,0.45858]
[1758849117564,0.3432,3922.6,3922.5,0.45858]
[1758849117750,0.90662417,3922.6,3922.5,0.45858]
[1758849118062,0.56342417,3922.6,3922.5,0.71728]
[1758849118259,0.3432,3922.8,3922.5,0.45857]
[1758849118449,0.3432,3922.6,3922.5,0.45857]
[1758849118655,0.90815147,3922.6,3922.5,0.45857]
[1758849118861,0.56495147,3922.6,3922.5,0.45857]
[1758849119053,0.3432,3922.9,3922.8,0.45855]
[1758849119360,0.90815377,3922.9,3922.8,0.45855]
[1758849119552,0.56495377,3922.9,3922.8,0.71725]
[1758849120257,0.56495377,3922.9,3922.7,0.45855]
[1758849120258,0.3234,3922.8,3922.7,0.45855]
[1758849120457,0.56495377,3922.8,3922.7,0.70525]
[1758849120662,0.1382,3923.5,3923.2,0.45849]
[1758849120864,0.13,3923.0,3922.8,0.273]
[1758849121163,0.3234,3922.8,3922.7,0.45856]
[1758849121366,0.88032852,3922.8,3922.7,0.45856]
[1758849123165,0.88032852,3922.8,3922.6,0.273]
[1758849123166,0.55692852,3922.8,3921.7,0.2467]
[1758849123356,0.4534,3922.5,3922.4,0.45858]
[1758849123666,0.55692852,3922.5,3922.4,0.70528]
[1758849123864,0.55744275,3922.8,3922.7,0.45856]
[1758849124068,0.3475,3922.9,3922.8,0.45853]
[1758849124273,0.1338,3922.0,3921.1,0.2451]
[1758849124566,0.1338,3922.0,3921.2,0.273]
[1758849124567,0.90494295,3921.9,3921.2,0.273]
[1758849124756,0.55744295,3921.8,3921.2,0.273]
[1758849124969,0.3475,3921.4,3921.0,0.73175]
[1758849125157,0.1338,3921.5,3921.1,0.45874]
[1758849125158,0.3475,3921.2,3921.1,0.45874]
[1758849125357,0.90494295,3921.2,3921.1,0.45874]
[1758849126663,0.90494295,3921.2,3921.1,0.73174]
[1758849128463,1.78523639,3922.6,3922.1,0.45863]
[1758849128659,0.3475,3921.9,3921.8,0.73166]
[1758849128859,0.90490562,3921.9,3921.8,0.45866]
[1758849129064,0.3475,3921.8,3921.5,0.273]
[1758849129268,0.55740562,3921.9,3921.5,0.273]
[1758849129269,0.3475,3921.6,3921.5,0.273]
[1758849129566,0.90490562,3921.6,3921.5,0.273]
[1758849130265,0.55740562,3921.6,3921.5,0.5181]
[1758849130468,0.55740562,3921.6,3921.5,0.7317]
[1758849130662,0.90490562,3921.6,3921.5,0.7317]
[1758849130962,0.55740562,3921.6,3921.5,0.7038]
[1758849131159,0.90490562,3921.6,3921.5,0.7317]
[1758849131362,0.55740562,3921.6,3921.5,0.9768]
[1758849131564,0.0254,3922.3,3922.2,0.45862]
[1758849131764,0.0254,3922.3,3922.2,0.73162]
[1758849131765,0.3729,3922.3,3922.2,0.73162]
[1758849132162,0.0254,3922.3,3922.2,0.97672]
[1758849132477,1e-05,3922.3,3922.2,0.97672]
[1758849132856,1e-05,3922.3,3922.2,0.73162]
[1758849133771,1e-05,3922.3,3922.2,0.45862]
[1758849134068,0.3475,3922.9,3922.6,0.45856]
[1758849134270,0.58853,3923.0,3922.6,0.45856]
[1758849134569,0.58853,3923.0,3922.2,0.273]
[1758849134570,0.3475,3922.5,3922.4,0.45859]
[1758849135180,0.4813,3922.5,3922.4,0.73159]
[1758849135871,0.3475,3922.5,3922.4,0.73159]
[1758849136168,0.4813,3922.5,3922.4,0.73159]
[1758849136565,0.13,3923.0,3922.4,0.73159]
[1758849136771,0.13,3923.0,3922.9,0.45853]
[1758849137167,0.3475,3922.9,3922.8,0.45854]
[1758849137862,0.0254,3923.6,3923.3,0.45848]
[1758849138061,0.1338,3923.5,3923.4,0.45847]
[1758849138273,0.1338,3923.5,3922.7,5.34899941]
[1758849138274,5.1338,3923.5,3922.3,0.3394]
[1758849138479,0.45851,3923.2,3922.4,0.273]
[1758849138768,0.45851,3923.2,3921.6,6.49570941]
[1758849138769,0.1338,3923.0,3922.6,0.45856]
[1758849138975,0.1338,3923.0,3921.5,0.4587]
[1758849138976,0.4586,3922.4,3921.5,0.4587]
[1758849139175,0.45861,3922.3,3921.8,0.45865]
[1758849139363,0.1338,3923.0,3921.9,0.273]
[1758849139564,0.1338,3923.0,3922.3,0.4586]
[1758849139765,0.45854,3922.9,3922.1,0.45862]
[1758849140059,0.45858,3922.5,3921.9,0.73165]
[1758849140261,0.1338,3922.5,3922.2,0.45861]
[1758849140461,0.3475,3922.4,3922.2,0.45861]
[1758849140669,0.3475,3922.4,3922.0,0.45864]
[1758849141067,0.1338,3922.5,3922.0,0.45864]
[1758849141268,0.3475,3922.4,3922.0,0.45864]
[1758849141469,0.3475,3921.7,3921.0,0.3394]
[1758849141674,0.3475,3921.7,3921.4,0.3394]
[1758849141971,0.3475,3921.7,3921.5,0.3394]
[1758849142158,0.3475,3921.9,3921.2,0.3394]
[1758849142362,0.1338,3922.5,3922.0,0.45864]
[1758849142558,0.1338,3922.5,3922.0,0.79804]
[1758849142559,0.3475,3922.4,3922.0,0.79804]
[1758849142974,0.1338,3922.5,3922.0,0.79804]
[1758849143166,0.1338,3922.5,3922.0,0.45864]
[1758849143373,0.1338,3923.0,3922.2,0.3394]
[1758849143374,0.3475,3922.9,3922.2,0.3394]
[1758849143676,0.56045011,3922.8,3922.2,0.3394]
[1758849143874,0.56045011,3922.7,3922.0,0.1386]
[1758849144066,0.56045011,3922.6,3922.4,0.45858]
[1758849144267,0.1338,3923.0,3922.6,0.45856]
[1758849144471,0.90793676,3922.9,3922.6,0.45856]
[1758849144776,0.90793676,3922.9,3922.7,0.3394]
[1758849144777,0.56043676,3922.8,3922.7,0.3394]
[1758849144976,0.90793676,3922.8,3922.7,0.3394]
[1758849145670,0.1338,3923.0,3922.7,0.3394]
[1758849145671,0.3475,3923.0,3922.7,0.3394]
[1758849145873,0.90792847,3922.9,3922.7,0.79795]
[1758849146169,0.3475,3922.9,3922.8,0.3394]
[1758849146670,0.45851,3923.1,3922.0,0.478]
[1758849146876,0.3475,3922.9,3922.6,0.45856]
[1758849147067,0.4813,3923.0,3922.3,0.3394]
[1758849147266,0.56043482,3922.9,3922.3,0.3394]
[1758849147573,0.3475,3923.0,3922.8,0.45853]
[1758849147770,0.59227,3923.5,3922.8,0.45853]
[1758849148073,0.56040276,3923.4,3922.8,0.45853]
[1758849148278,0.56040276,3923.3,3922.8,0.45853]
[1758849148472,0.56040276,3923.2,3922.8,0.45853]
[1758849148675,0.1338,3923.0,3922.8,0.45853]
[1758849148871,0.3475,3922.9,3922.3,0.3394]
[1758849149592,0.3475,3922.9,3922.7,0.79795]
[1758849149874,0.3475,3923.4,3923.2,0.79789]
[1758849150069,0.1338,3923.5,3923.2,0.79789]
[1758849150070,0.56034778,3923.3,3923.2,0.7797]
[1758849150376,0.45839,3924.2,3923.4,0.45847]
[1758849150671,1.99050148,3924.3,3922.8,0.273]
[1758849150672,0.56029011,3923.9,3923.8,0.3212]
[1758849151071,0.56029011,3923.9,3923.5,0.273]
[1758849151376,0.3312,3923.7,3923.6,0.45844]
[1758849151669,0.3312,3923.9,3923.5,0.273]
[1758849151981,0.1283,3924.0,3923.6,0.45845]
[1758849151982,0.3312,3923.7,3923.6,0.45845]
[1758849152464,0.3312,3923.6,3923.5,0.273]
[1758849153174,0.89123984,3923.6,3923.5,0.273]
[1758849153571,0.58676,3923.5,3923.1,0.4585]
[1758849153770,0.58676,3923.5,3922.9,0.45853]
[1758849154168,0.58676,3923.5,3922.8,0.273]
[1758849154169,0.3312,3923.4,3922.8,0.273]
[1758849154370,0.1283,3924.0,3923.6,0.45844]
[1758849154575,0.89109324,3923.9,3923.6,0.77964]
[1758849154876,0.55989324,3923.8,3923.6,0.77964]
[1758849155074,0.1283,3924.0,3923.8,0.45842]
[1758849155278,0.89104219,3923.9,3923.8,0.45842]
[1758849157677,0.61756,3924.5,3923.8,5.3212]
[1758849157678,0.0254,3924.5,3923.8,5.3212]
[1758849157973,0.0254,3924.5,3924.4,0.77956]
[1758849158282,0.91641939,3924.5,3924.4,0.45836]
[1758849159081,0.58521939,3924.5,3924.4,0.77956]
[1758849159383,0.0254,3924.5,3924.4,0.77956]
[1758849160371,0.0254,3924.5,3924.4,5.5785873]
[1758849160578,0.3312,3925.4,3925.3,0.45825]
[1758849160881,0.89056696,3925.4,3925.3,0.45825]
[1758849161072,0.55936696,3925.4,3925.3,0.45825]
[1758849161278,2.35102866,3925.9,3925.8,0.4582]
[1758849161477,2.90999544,3925.9,3925.8,0.7794]
[1758849161683,0.89016678,3925.9,3925.8,0.7794]
[1758849162003,0.1283,3926.5,3925.8,0.7794]
[1758849162004,0.3312,3926.4,3926.1,0.45816]
[1758849162184,0.3312,3926.2,3926.1,0.45816]
[1758849162379,0.55891799,3926.2,3925.8,0.45818]
[1758849162679,2.13153504,3926.5,3925.8,0.45818]
[1758849162878,0.558403,3926.4,3925.9,0.45817]
[1758849163082,0.558403,3926.4,3926.0,0.45816]
[1758849163579,0.3312,3926.3,3926.2,0.45815]
[1758849163784,0.558403,3926.3,3925.9,0.45817]
[1758849164087,0.4595,3926.0,3925.9,0.45817]
[1758849165887,0.3312,3926.4,3926.3,0.45813]
[1758849166982,0.3312,3926.4,3926.3,0.45814]
[1758849167180,0.3312,3926.4,3926.3,0.77934]
[1758849167790,0.3475,3926.7,3926.6,0.4581]
[1758849167991,0.90566158,3926.7,3926.6,0.4581]
[1758849168483,0.3475,3926.7,3926.6,0.4581]
[1758849168797,0.58636,3927.0,3926.3,0.3212]
[1758849168984,0.3312,3926.5,3926.4,0.45813]
[1758849170489,0.3312,3926.5,3926.4,0.77933]
[1758849171185,0.3312,3926.5,3926.4,0.45813]
[1758849173586,0.1283,3926.5,3926.3,0.45814]
[1758849173890,0.3312,3926.4,3926.3,0.45814]
[1758849174296,0.3312,3926.4,3925.8,0.272]
[1758849176193,0.7819,3926.3,3926.2,0.45814]
[1758849176388,0.7819,3926.3,3926.2,0.67334]
[1758849177390,0.2249,3926.3,3926.2,1.22494]
[1758849177598,0.5561,3926.6,3926.5,0.67331]
[1758849177790,0.7819,3926.6,3926.5,0.67331]
[1758849177990,1.34038758,3926.6,3926.5,0.67331]
[1758849178391,0.2249,3926.6,3926.5,1.22491]
[1758849178586,0.3312,3926.9,3926.6,0.77929]
[1758849178791,0.7819,3926.9,3926.8,0.2152]
[1758849178991,1.34053475,3926.9,3926.6,0.77929]
[1758849179191,0.7819,3926.7,3926.6,0.67329]
[1758849179498,1.34053475,3926.7,3926.6,0.67329]
[1758849179996,1.34053475,3926.7,3926.6,0.2152]
[1758849181097,0.0117,3927.2,3927.1,0.7872]
[1758849181391,0.0117,3927.2,3927.1,1.24524]
[1758849181392,0.57070525,3927.2,3927.1,1.24524]
[1758849181597,0.5593,3927.4,3927.3,1.24521]
[1758849181802,0.55895777,3927.4,3927.3,5.8675373]
[1758849182005,0.3597,3927.9,3927.8,0.45796]
[1758849182293,0.022,3927.9,3927.8,0.79646]
[1758849182693,0.022,3927.9,3927.8,0.272]
[1758849182694,0.3597,3927.9,3927.8,0.272]
[1758849183092,0.022,3927.9,3927.8,0.6105]
[1758849184397,0.022,3927.9,3927.8,5.6105]
[1758849185293,0.3377,3928.9,3927.8,5.6105]
[1758849185500,0.89488579,3928.8,3928.7,5.5831773]
[1758849185804,0.55828579,3928.8,3928.7,5.5831773]
[1758849185999,0.45781,3929.2,3929.0,0.3263]
[1758849186298,0.3366,3928.9,3928.8,0.272]
[1758849186800,0.55815074,3928.9,3928.5,0.3263]
[1758849187096,0.45785,3928.8,3928.1,41.58422]
[1758849187289,0.558561,3928.7,3928.3,0.45789]
[1758849187492,0.895161,3928.6,3928.5,0.45788]
[1758849187700,0.3366,3928.6,3928.5,0.45788]
[1758849188092,0.3366,3928.6,3928.5,0.78418]
[1758849188292,0.89513733,3928.6,3928.5,0.78418]
[1758849188590,0.3366,3928.6,3928.5,0.78418]
[1758849188989,0.3366,3929.0,3928.7,0.3263]
[1758849189190,0.0104,3929.4,3928.3,4.7990273]
[1758849189191,0.55833454,3928.9,3928.8,0.5983]
[1758849189789,0.0104,3929.4,3929.2,0.3263]
[1758849189990,0.0104,3929.4,3929.2,0.272]
[1758849189991,0.89483917,3929.3,3929.2,0.272]
[1758849190190,1.35262917,3929.3,3928.3,4.7990273]
[1758849190492,0.3366,3929.1,3928.4,0.5983]
[1758849190697,0.55823917,3929.0,3928.4,0.5983]
[1758849191012,0.69633917,3929.0,3928.6,0.3263]
[1758849191292,0.3366,3928.8,3928.7,1.05615]
[1758849191693,0.7944,3929.3,3928.7,1.05615]
[1758849191889,0.55820506,3929.2,3928.7,1.05615]
[1758849192105,0.55820506,3929.1,3929.0,0.3263]
[1758849192295,0.55820506,3929.1,3929.0,0.4578]
[1758849192492,0.0104,3929.4,3929.1,0.3263]
[1758849192698,0.0104,3929.4,3929.3,5.5831173]
[1758849194116,0.3366,3930.4,3930.3,0.78396]
[1758849194294,0.3366,3930.4,3930.3,0.272]
[1758849194295,0.89414302,3930.4,3930.3,0.272]
[1758849194905,0.89414302,3930.4,3930.3,0.5983]
[1758849195604,0.55754302,3930.4,3930.3,0.5983]
[1758849196005,0.3366,3930.8,3930.3,0.272]
[1758849196197,0.3366,3931.4,3931.1,0.3263]
[1758849196400,0.55773869,3931.3,3931.2,0.3263]
[1758849196804,0.1381,3932.0,3931.2,0.3263]
[1758849196805,0.3366,3931.8,3931.7,0.45751]
[1758849197204,0.17153353,3932.5,3931.9,0.78378]
[1758849197398,0.55715096,3932.4,3932.1,0.45745]
[1758849197602,0.3366,3932.2,3932.1,0.78375]
[1758849197905,0.89375096,3932.2,3932.1,0.78375]
[1758849198306,0.3366,3932.2,3932.1,0.78375]
[1758849198508,0.3366,3932.2,3932.1,0.3263]
[1758849198698,2.18045051,3932.5,3932.0,0.272]
[1758849198893,0.55589156,3932.4,3932.0,0.5983]
[1758849199098,0.17153353,3932.5,3932.2,0.45745]
[1758849199503,0.3366,3932.4,3932.2,0.45745]
[1758849199802,0.3366,3932.4,3932.0,0.272]
[1758849199803,0.3366,3932.4,3932.0,5.5284973]
[1758849200500,0.3586,3932.9,3932.4,0.3263]
[1758849200809,0.3366,3932.7,3932.5,0.5973]
[1758849200996,0.022,3932.9,3932.0,0.1315]
[1758849201196,0.022,3932.9,3931.9,4.7990273]
[1758849201197,0.3366,3932.4,3931.9,4.7990273]
[1758849201402,0.3366,3932.4,3932.2,0.3263]
[1758849201608,0.4574,3932.6,3932.2,0.3263]
[1758849202002,0.3366,3932.3,3932.2,0.3263]
[1758849202198,0.3366,3932.3,3932.0,0.271]
[1758849202199,0.3586,3932.9,3932.1,0.3263]
[1758849202397,0.3586,3932.9,3932.0,0.4025]
[1758849202398,0.022,3932.9,3932.3,4.7990273]
[1758849202603,0.3366,3932.8,3932.6,0.3263]
[1758849202905,0.022,3932.9,3932.8,0.3263]
[1758849203104,0.022,3932.9,3932.8,0.271]
[1758849203105,0.47938,3932.9,3932.8,0.271]
[1758849203704,0.47938,3932.9,3932.6,0.271]
[1758849203906,0.3366,3932.7,3932.6,0.271]
[1758849204218,0.79404,3932.3,3932.2,0.271]
[1758849204401,0.3366,3932.3,3932.2,0.271]